[Event "*** MasterClass Titled Tuesday Blitz"]
[Site "Chess.com"]
[Date "2017.12.12"]
[Round "8"]
[White "RoelandPruijssers"]
[Black "Keaton87"]
[Result "0-1"]
[WhiteElo "2480"]
[BlackElo "2524"]
[TimeControl "180+2"]
[EndTime "14:55:22 PST"]
[Termination "Keaton87 won by checkmate"]

1. e4 {[%clk 0:03:01.9]} 1... c5 {[%clk 0:02:59.7]} 2. Nf3 {[%clk 0:03:02.9]}
2... d6 {[%clk 0:02:59.8]} 3. Nc3 {[%clk 0:03:03.8]} 3... Nf6 {[%clk 0:03:00.6]}
4. g3 {[%clk 0:03:04.5]} 4... g6 {[%clk 0:02:57.9]} 5. Bg2 {[%clk 0:03:06]} 5...
Bg7 {[%clk 0:02:59.1]} 6. O-O {[%clk 0:03:07.6]} 6... O-O {[%clk 0:03:00.2]} 7.
Re1 {[%clk 0:03:09.2]} 7... Nc6 {[%clk 0:03:00.9]} 8. d3 {[%clk 0:03:10]} 8...
Rb8 {[%clk 0:02:59]} 9. a4 {[%clk 0:03:06.9]} 9... Bd7 {[%clk 0:02:52.9]} 10. e5
{[%clk 0:03:02.2]} 10... dxe5 {[%clk 0:02:51.1]} 11. Nxe5 {[%clk 0:03:04.1]}
11... Nxe5 {[%clk 0:02:52]} 12. Rxe5 {[%clk 0:03:06]} 12... b6 {[%clk
0:02:51.3]} 13. Bf4 {[%clk 0:02:59.3]} 13... Rc8 {[%clk 0:02:51.8]} 14. Re1
{[%clk 0:02:52.6]} 14... Bc6 {[%clk 0:02:51.3]} 15. Be5 {[%clk 0:02:39.6]} 15...
Bxg2 {[%clk 0:02:50.6]} 16. Kxg2 {[%clk 0:02:41.5]} 16... Qd7 {[%clk 0:02:34.3]}
17. Qf3 {[%clk 0:02:39.4]} 17... Qc6 {[%clk 0:02:34.8]} 18. Nb5 {[%clk
0:02:21.9]} 18... Qxf3+ {[%clk 0:02:32.8]} 19. Kxf3 {[%clk 0:02:23.8]} 19... a6
{[%clk 0:02:18]} 20. Nc3 {[%clk 0:02:23.9]} 20... e6 {[%clk 0:02:15]} 21. Ra3
{[%clk 0:02:18.4]} 21... Nd5 {[%clk 0:02:07.9]} 22. Bxg7 {[%clk 0:02:14.3]}
22... Kxg7 {[%clk 0:02:09.8]} 23. Nxd5 {[%clk 0:02:13.3]} 23... exd5 {[%clk
0:02:11.7]} 24. Re5 {[%clk 0:02:09.5]} 24... Rfd8 {[%clk 0:02:10.4]} 25. Rb3
{[%clk 0:01:59.7]} 25... Rc6 {[%clk 0:02:09.8]} 26. Re7 {[%clk 0:01:59.2]} 26...
c4 {[%clk 0:02:07.7]} 27. Rb4 {[%clk 0:01:48.2]} 27... Rdd6 {[%clk 0:01:42.7]}
28. dxc4 {[%clk 0:01:37.8]} 28... dxc4 {[%clk 0:01:40.5]} 29. Ke2 {[%clk
0:01:18.7]} 29... Rd5 {[%clk 0:01:26]} 30. f4 {[%clk 0:01:07.1]} 30... Kf6
{[%clk 0:01:16.7]} 31. Re4 {[%clk 0:01:07.2]} 31... Rdc5 {[%clk 0:00:55.7]} 32.
g4 {[%clk 0:00:59.6]} 32... a5 {[%clk 0:00:53.4]} 33. Rb5 {[%clk 0:00:58.8]}
33... Rxb5 {[%clk 0:00:53.4]} 34. axb5 {[%clk 0:01:00.7]} 34... Rc5 {[%clk
0:00:54.8]} 35. Kd2 {[%clk 0:01:00.8]} 35... h5 {[%clk 0:00:32]} 36. h3 {[%clk
0:00:59.3]} 36... Rxb5 {[%clk 0:00:20.3]} 37. Kc3 {[%clk 0:00:59.6]} 37... hxg4
{[%clk 0:00:20.3]} 38. hxg4 {[%clk 0:01:01.5]} 38... g5 {[%clk 0:00:17.1]} 39.
f5 {[%clk 0:00:29.9]} 39... Re5 {[%clk 0:00:17.2]} 40. Rxc4 {[%clk 0:00:15.2]}
40... b5 {[%clk 0:00:12.6]} 41. Rc6+ {[%clk 0:00:16.1]} 41... Ke7 {[%clk
0:00:13.7]} 42. Kd3 {[%clk 0:00:17.4]} 42... f6 {[%clk 0:00:05.6]} 43. b3 {[%clk
0:00:16.2]} 43... b4 {[%clk 0:00:06.4]} 44. Ra6 {[%clk 0:00:16.5]} 44... Rc5
{[%clk 0:00:07.2]} 45. Kd2 {[%clk 0:00:15.7]} 45... Rd5+ {[%clk 0:00:08.1]} 46.
Ke3 {[%clk 0:00:16.9]} 46... Rc5 {[%clk 0:00:08.1]} 47. Re6+ {[%clk 0:00:17.4]}
47... Kf7 {[%clk 0:00:09]} 48. Kd3 {[%clk 0:00:18.6]} 48... Kg7 {[%clk
0:00:07.7]} 49. Re7+ {[%clk 0:00:19.1]} 49... Kf8 {[%clk 0:00:08.5]} 50. Ra7
{[%clk 0:00:19.8]} 50... Rc3+ {[%clk 0:00:08.7]} 51. Kd4 {[%clk 0:00:20.4]}
51... Rxc2 {[%clk 0:00:09]} 52. Kd5 {[%clk 0:00:21.9]} 52... Re2 {[%clk
0:00:06.1]} 53. Kd6 {[%clk 0:00:22.7]} 53... Re4 {[%clk 0:00:06.3]} 54. Rxa5
{[%clk 0:00:21.5]} 54... Re3 {[%clk 0:00:05.1]} 55. Ra8+ {[%clk 0:00:20.7]}
55... Kg7 {[%clk 0:00:05.3]} 56. Ra7+ {[%clk 0:00:22.6]} 56... Kh6 {[%clk
0:00:06.3]} 57. Rb7 {[%clk 0:00:24.1]} 57... Re4 {[%clk 0:00:06.5]} 58. Kd5
{[%clk 0:00:23.8]} 58... Rxg4 {[%clk 0:00:07.7]} 59. Ke6 {[%clk 0:00:24.8]}
59... Rg3 {[%clk 0:00:07]} 60. Kxf6 {[%clk 0:00:26.1]} 60... Rxb3 {[%clk
0:00:08.1]} 61. Rb8 {[%clk 0:00:26.7]} 61... Kh7 {[%clk 0:00:09.4]} 62. Rb7+
{[%clk 0:00:26.6]} 62... Kh6 {[%clk 0:00:10.8]} 63. Rb8 {[%clk 0:00:27]} 63...
Kh7 {[%clk 0:00:11.8]} 64. Kf7 {[%clk 0:00:26.8]} 64... g4 {[%clk 0:00:11.6]}
65. Rg8 {[%clk 0:00:24.2]} 65... g3 {[%clk 0:00:10.7]} 66. Rg4 {[%clk
0:00:24.8]} 66... Kh6 {[%clk 0:00:11.8]} 67. f6 {[%clk 0:00:23.1]} 67... Kh5
{[%clk 0:00:13.2]} 68. Rg8 {[%clk 0:00:22.5]} 68... Rf3 {[%clk 0:00:12.7]} 69.
Ke6 {[%clk 0:00:23.4]} 69... b3 {[%clk 0:00:12.7]} 70. f7 {[%clk 0:00:24.3]}
70... b2 {[%clk 0:00:13.5]} 71. Rb8 {[%clk 0:00:25.2]} 71... g2 {[%clk
0:00:14.4]} 72. Rb5+ {[%clk 0:00:22.9]} 72... Kg4 {[%clk 0:00:10.7]} 73. Rb8
{[%clk 0:00:21.7]} 73... Kh3 {[%clk 0:00:05.7]} 74. Rh8+ {[%clk 0:00:21.7]}
74... Kg3 {[%clk 0:00:06.9]} 75. Rg8+ {[%clk 0:00:22.1]} 75... Kf2 {[%clk
0:00:06.8]} 76. Rb8 {[%clk 0:00:23.7]} 76... g1=Q {[%clk 0:00:07.4]} 77. Rxb2+
{[%clk 0:00:25.1]} 77... Kg3 {[%clk 0:00:08.8]} 78. Rb8 {[%clk 0:00:23.9]} 78...
Qe3+ {[%clk 0:00:09.6]} 79. Kd7 {[%clk 0:00:25]} 79... Rxf7+ {[%clk 0:00:09.6]}
80. Kc6 {[%clk 0:00:26]} 80... Qe6+ {[%clk 0:00:10]} 81. Kc5 {[%clk 0:00:26]}
81... Qe5+ {[%clk 0:00:10.6]} 82. Kc6 {[%clk 0:00:27.2]} 82... Qxb8 {[%clk
0:00:11.3]} 83. Kd5 {[%clk 0:00:29.1]} 83... Qd8+ {[%clk 0:00:11.4]} 84. Ke6
{[%clk 0:00:31]} 84... Re7+ {[%clk 0:00:11.9]} 85. Kf6 {[%clk 0:00:32.7]} 85...
Qf8+ {[%clk 0:00:13.1]} 86. Kg6 {[%clk 0:00:34.6]} 86... Rg7+ {[%clk 0:00:14.3]}
87. Kh6 {[%clk 0:00:36.5]} 87... Qh8# {[%clk 0:00:15.4]} 0-1

[Event "*** MasterClass Titled Tuesday Blitz"]
[Site "Chess.com"]
[Date "2017.12.12"]
[Round "8"]
[White "DrVelja"]
[Black "krzyzan94"]
[Result "1/2-1/2"]
[WhiteElo "2553"]
[BlackElo "2614"]
[TimeControl "180+2"]
[EndTime "14:55:37 PST"]
[Termination "Game drawn - insufficient material"]

1. e4 {[%clk 0:03:01.9]} 1... c5 {[%clk 0:02:59.6]} 2. Nf3 {[%clk 0:03:03.1]}
2... g6 {[%clk 0:02:59.7]} 3. d4 {[%clk 0:03:04.3]} 3... cxd4 {[%clk 0:03:00.1]}
4. Qxd4 {[%clk 0:03:04]} 4... Nf6 {[%clk 0:03:00.1]} 5. e5 {[%clk 0:03:05.6]}
5... Nc6 {[%clk 0:03:00.6]} 6. Qa4 {[%clk 0:03:00]} 6... Nd5 {[%clk 0:03:01.2]}
7. Qe4 {[%clk 0:03:01.6]} 7... Nb6 {[%clk 0:03:01.7]} 8. Nc3 {[%clk 0:03:01]}
8... Bg7 {[%clk 0:02:51.5]} 9. Bg5 {[%clk 0:03:01.2]} 9... d5 {[%clk 0:02:34.9]}
10. exd6 {[%clk 0:02:57.1]} 10... Qxd6 {[%clk 0:02:35.8]} 11. Rd1 {[%clk
0:02:55.6]} 11... Qe6 {[%clk 0:02:36.2]} 12. Qxe6 {[%clk 0:02:49.6]} 12... Bxe6
{[%clk 0:02:38.1]} 13. Bb5 {[%clk 0:02:49.9]} 13... O-O {[%clk 0:02:36.1]} 14.
O-O {[%clk 0:02:49.4]} 14... Bxc3 {[%clk 0:02:34.6]} 15. bxc3 {[%clk 0:02:48.4]}
15... Nd5 {[%clk 0:02:33.6]} 16. Bxc6 {[%clk 0:02:43.7]} 16... bxc6 {[%clk
0:02:33.5]} 17. c4 {[%clk 0:02:45.3]} 17... Nc3 {[%clk 0:02:34.4]} 18. Bxe7
{[%clk 0:02:20.5]} 18... Rfe8 {[%clk 0:02:31.3]} 19. Bf6 {[%clk 0:02:17.9]}
19... Nxd1 {[%clk 0:02:32.1]} 20. Rxd1 {[%clk 0:02:19.6]} 20... Bxc4 {[%clk
0:02:34]} 21. Ne5 {[%clk 0:02:16.3]} 21... Re6 {[%clk 0:02:24.8]} 22. Nd7 {[%clk
0:01:50.9]} 22... Be2 {[%clk 0:01:47.6]} 23. Rd2 {[%clk 0:01:42.2]} 23... Bc4
{[%clk 0:01:31.2]} 24. h3 {[%clk 0:01:38.3]} 24... Bxa2 {[%clk 0:01:30]} 25. Bc3
{[%clk 0:01:27.4]} 25... a5 {[%clk 0:01:20.4]} 26. Nf6+ {[%clk 0:00:48.7]} 26...
Kf8 {[%clk 0:01:21.1]} 27. Nxh7+ {[%clk 0:00:37.6]} 27... Ke7 {[%clk 0:01:21.3]}
28. Ng5 {[%clk 0:00:39.3]} 28... Rd6 {[%clk 0:01:05.6]} 29. Re2+ {[%clk
0:00:40.6]} 29... Kd7 {[%clk 0:01:06.6]} 30. Be5 {[%clk 0:00:36.7]} 30... Rd1+
{[%clk 0:01:07.1]} 31. Kh2 {[%clk 0:00:38.2]} 31... a4 {[%clk 0:01:08.7]} 32.
Ne4 {[%clk 0:00:33.4]} 32... Bc4 {[%clk 0:01:00.7]} 33. Nc5+ {[%clk 0:00:27.7]}
33... Kc8 {[%clk 0:00:58.9]} 34. Re4 {[%clk 0:00:29]} 34... Rd5 {[%clk
0:00:47.9]} 35. Rxc4 {[%clk 0:00:25.4]} 35... Rxe5 {[%clk 0:00:48.5]} 36. Nxa4
{[%clk 0:00:26.2]} 36... Kc7 {[%clk 0:00:48.9]} 37. Nc5 {[%clk 0:00:21.4]} 37...
Re2 {[%clk 0:00:46.2]} 38. Nd3 {[%clk 0:00:22.8]} 38... Ra2 {[%clk 0:00:44.6]}
39. c3 {[%clk 0:00:24]} 39... Rad2 {[%clk 0:00:44.1]} 40. Rd4 {[%clk 0:00:25.3]}
40... f5 {[%clk 0:00:40.2]} 41. Kg3 {[%clk 0:00:25.9]} 41... Rc2 {[%clk
0:00:37.2]} 42. Nf4 {[%clk 0:00:22.6]} 42... Rxc3+ {[%clk 0:00:37.9]} 43. f3
{[%clk 0:00:24.2]} 43... Rb2 {[%clk 0:00:37.5]} 44. Nxg6 {[%clk 0:00:25.2]}
44... Rcc2 {[%clk 0:00:36.2]} 45. Nf4 {[%clk 0:00:26.5]} 45... c5 {[%clk
0:00:37.1]} 46. Rd1 {[%clk 0:00:27.2]} 46... c4 {[%clk 0:00:37.9]} 47. h4 {[%clk
0:00:28.8]} 47... c3 {[%clk 0:00:37.9]} 48. h5 {[%clk 0:00:30.4]} 48... Rd2
{[%clk 0:00:39.2]} 49. Nd5+ {[%clk 0:00:27.3]} 49... Kc6 {[%clk 0:00:32.1]} 50.
Nxc3 {[%clk 0:00:28.7]} 50... Rxg2+ {[%clk 0:00:33.5]} 51. Kf4 {[%clk
0:00:30.4]} 51... Rh2 {[%clk 0:00:34.6]} 52. Kxf5 {[%clk 0:00:27]} 52... Rxh5+
{[%clk 0:00:35.2]} 53. Kf4 {[%clk 0:00:28.5]} 53... Rb4+ {[%clk 0:00:35.3]} 54.
Ne4 {[%clk 0:00:29.7]} 54... Rh8 {[%clk 0:00:32.8]} 55. Rd6+ {[%clk 0:00:30.3]}
55... Kc7 {[%clk 0:00:33.8]} 56. Rd3 {[%clk 0:00:31.2]} 56... Rf8+ {[%clk
0:00:34.1]} 57. Ke5 {[%clk 0:00:30.9]} 57... Rb5+ {[%clk 0:00:33.9]} 58. Rd5
{[%clk 0:00:27.3]} 58... Rxd5+ {[%clk 0:00:30]} 59. Kxd5 {[%clk 0:00:28.2]}
59... Rxf3 {[%clk 0:00:31.9]} 60. Ke5 {[%clk 0:00:28.5]} 60... Kc6 {[%clk
0:00:31.8]} 61. Kd4 {[%clk 0:00:30]} 61... Rf4 {[%clk 0:00:33]} 62. Ke5 {[%clk
0:00:31.3]} 62... Rh4 {[%clk 0:00:33.7]} 63. Kd4 {[%clk 0:00:32.3]} 63... Rh5
{[%clk 0:00:33.8]} 64. Kd3 {[%clk 0:00:33.7]} 64... Rd5+ {[%clk 0:00:32.9]} 65.
Ke3 {[%clk 0:00:34.1]} 65... Rd8 {[%clk 0:00:34.3]} 66. Kf4 {[%clk 0:00:33.3]}
66... Kd5 {[%clk 0:00:35.6]} 67. Nf6+ {[%clk 0:00:34]} 67... Kd4 {[%clk
0:00:36.2]} 68. Kf5 {[%clk 0:00:35.5]} 68... Ra8 {[%clk 0:00:35.2]} 69. Ke6
{[%clk 0:00:35.8]} 69... Ra6+ {[%clk 0:00:36.1]} 70. Ke7 {[%clk 0:00:37]} 70...
Rc6 {[%clk 0:00:32.4]} 71. Nd7 {[%clk 0:00:37.1]} 71... Kd5 {[%clk 0:00:32.3]}
72. Nf6+ {[%clk 0:00:38.2]} 72... Ke5 {[%clk 0:00:33.3]} 73. Nd7+ {[%clk
0:00:39.8]} 73... Kf5 {[%clk 0:00:34.5]} 74. Kf7 {[%clk 0:00:39.2]} 74... Re6
{[%clk 0:00:34.3]} 75. Nf8 {[%clk 0:00:37.6]} 75... Re1 {[%clk 0:00:33.2]} 76.
Nd7 {[%clk 0:00:38.8]} 76... Re2 {[%clk 0:00:30.3]} 77. Nf8 {[%clk 0:00:39.4]}
77... Ra2 {[%clk 0:00:30.4]} 78. Nd7 {[%clk 0:00:39.6]} 78... Ra6 {[%clk
0:00:31.3]} 79. Ke7 {[%clk 0:00:40.5]} 79... Re6+ {[%clk 0:00:30.8]} 80. Kf7
{[%clk 0:00:41.1]} 80... Rh6 {[%clk 0:00:29.3]} 81. Ke7 {[%clk 0:00:42.3]} 81...
Rg6 {[%clk 0:00:28.6]} 82. Kf7 {[%clk 0:00:42.1]} 82... Ra6 {[%clk 0:00:26.6]}
83. Ke7 {[%clk 0:00:43.2]} 83... Rc6 {[%clk 0:00:26]} 84. Kf7 {[%clk 0:00:43.2]}
84... Ke4 {[%clk 0:00:26]} 85. Ke7 {[%clk 0:00:43.6]} 85... Kd5 {[%clk
0:00:27.3]} 86. Nf6+ {[%clk 0:00:44.7]} 86... Ke5 {[%clk 0:00:25.9]} 87. Nd7+
{[%clk 0:00:46.1]} 87... Kf5 {[%clk 0:00:27.5]} 88. Kf7 {[%clk 0:00:47.3]} 88...
Re6 {[%clk 0:00:24.9]} 89. Nf8 {[%clk 0:00:47.3]} 89... Rf6+ {[%clk 0:00:26.2]}
90. Ke7 {[%clk 0:00:48.1]} 90... Rh6 {[%clk 0:00:27.8]} 91. Nd7 {[%clk
0:00:46.6]} 91... Rh7+ {[%clk 0:00:26.9]} 92. Kd6 {[%clk 0:00:48]} 92... Rxd7+
{[%clk 0:00:28.8]} 93. Kxd7 {[%clk 0:00:48.8]} 1/2-1/2

[Event "*** MasterClass Titled Tuesday Blitz"]
[Site "Chess.com"]
[Date "2017.12.12"]
[Round "8"]
[White "bascheyaro"]
[Black "florianschwabeneder"]
[Result "1-0"]
[WhiteElo "2633"]
[BlackElo "2474"]
[TimeControl "180+2"]
[EndTime "14:55:41 PST"]
[Termination "bascheyaro won on time"]

1. d4 {[%clk 0:03:01.9]} 1... d5 {[%clk 0:03:00.6]} 2. c4 {[%clk 0:03:03.2]}
2... e6 {[%clk 0:03:01.7]} 3. Nc3 {[%clk 0:03:04.4]} 3... Bb4 {[%clk 0:03:01.2]}
4. Bf4 {[%clk 0:03:05.2]} 4... dxc4 {[%clk 0:02:55.4]} 5. e3 {[%clk 0:03:06.2]}
5... Nf6 {[%clk 0:02:36.4]} 6. Bxc4 {[%clk 0:03:06.4]} 6... Nd5 {[%clk
0:02:25.8]} 7. Bxd5 {[%clk 0:03:06.7]} 7... exd5 {[%clk 0:02:26.1]} 8. Qa4+
{[%clk 0:03:06.9]} 8... Nc6 {[%clk 0:02:26.4]} 9. Nf3 {[%clk 0:03:08.2]} 9...
O-O {[%clk 0:02:22]} 10. O-O {[%clk 0:03:09]} 10... a6 {[%clk 0:02:14.4]} 11.
Qb3 {[%clk 0:03:03.8]} 11... Bxc3 {[%clk 0:02:09.7]} 12. bxc3 {[%clk 0:03:04.7]}
12... Na5 {[%clk 0:02:07]} 13. Qb4 {[%clk 0:03:05]} 13... Nc4 {[%clk 0:01:54.3]}
14. Ne5 {[%clk 0:03:05.5]} 14... a5 {[%clk 0:01:38.7]} 15. Qc5 {[%clk 0:02:53]}
15... Nxe5 {[%clk 0:01:14.2]} 16. Bxe5 {[%clk 0:02:53.2]} 16... c6 {[%clk
0:01:14.8]} 17. c4 {[%clk 0:02:53.7]} 17... Be6 {[%clk 0:01:10.6]} 18. cxd5
{[%clk 0:02:54.1]} 18... Qxd5 {[%clk 0:01:10.9]} 19. Rfb1 {[%clk 0:02:45.8]}
19... b5 {[%clk 0:01:04.1]} 20. a4 {[%clk 0:02:46.5]} 20... Qxc5 {[%clk
0:01:01.9]} 21. dxc5 {[%clk 0:02:47.5]} 21... b4 {[%clk 0:01:01.6]} 22. Rd1
{[%clk 0:02:46.3]} 22... Rfd8 {[%clk 0:00:58.8]} 23. Bd6 {[%clk 0:02:42.4]}
23... f6 {[%clk 0:00:56.9]} 24. e4 {[%clk 0:02:42.1]} 24... Kf7 {[%clk
0:00:57.6]} 25. f3 {[%clk 0:02:43.5]} 25... Ra7 {[%clk 0:00:53.6]} 26. Kf2
{[%clk 0:02:42.5]} 26... Rb7 {[%clk 0:00:54.5]} 27. Rab1 {[%clk 0:02:38.1]}
27... b3 {[%clk 0:00:51.1]} 28. Rd4 {[%clk 0:02:38.9]} 28... g6 {[%clk
0:00:35.1]} 29. Rb2 {[%clk 0:02:34.3]} 29... h5 {[%clk 0:00:31.2]} 30. Ke3
{[%clk 0:02:34]} 30... g5 {[%clk 0:00:31.5]} 31. f4 {[%clk 0:02:28.9]} 31...
gxf4+ {[%clk 0:00:32.4]} 32. Kxf4 {[%clk 0:02:30.1]} 32... Rg8 {[%clk
0:00:32.9]} 33. h3 {[%clk 0:02:29.3]} 33... Rxg2 {[%clk 0:00:23.3]} 34. Rxg2
{[%clk 0:02:30.1]} 34... b2 {[%clk 0:00:24.5]} 35. Rxb2 {[%clk 0:02:03.7]} 35...
Rxb2 {[%clk 0:00:25.3]} 36. Bc7 {[%clk 0:02:05.2]} 36... Rb4 {[%clk 0:00:25.9]}
37. Rd6 {[%clk 0:01:48.2]} 37... Rxa4 {[%clk 0:00:25.9]} 38. Ke3 {[%clk
0:01:47.4]} 38... Bxh3 {[%clk 0:00:20.7]} 39. Bd8 {[%clk 0:01:45.8]} 39... Be6
{[%clk 0:00:21.1]} 40. Rxc6 {[%clk 0:01:46.2]} 40... h4 {[%clk 0:00:22.4]} 41.
Rc7+ {[%clk 0:01:45.9]} 41... Kg6 {[%clk 0:00:23.2]} 42. Rc6 {[%clk 0:01:44.7]}
42... Kf7 {[%clk 0:00:24.2]} 43. Rc7+ {[%clk 0:01:43.1]} 43... Kg6 {[%clk
0:00:21.8]} 44. Re7 {[%clk 0:01:39.4]} 44... Bf7 {[%clk 0:00:18.5]} 45. Rb7
{[%clk 0:01:34.9]} 45... h3 {[%clk 0:00:18.9]} 46. Rb6 {[%clk 0:01:34.2]} 46...
h2 {[%clk 0:00:18.7]} 47. Rxf6+ {[%clk 0:01:35.3]} 47... Kg7 {[%clk 0:00:20]}
48. Rf1 {[%clk 0:01:36.8]} 48... Bg6 {[%clk 0:00:20.2]} 49. Bf6+ {[%clk
0:01:35.8]} 49... Kg8 {[%clk 0:00:18.9]} 50. Bd4 {[%clk 0:01:36.8]} 50... Ra3+
{[%clk 0:00:18.8]} 51. Kf4 {[%clk 0:01:37.1]} 51... Ra4 {[%clk 0:00:19.3]} 52.
Ke5 {[%clk 0:01:37.7]} 52... Ra2 {[%clk 0:00:19.1]} 53. c6 {[%clk 0:00:54]}
53... Rc2 {[%clk 0:00:19.6]} 54. Kd5 {[%clk 0:00:55.2]} 54... a4 {[%clk
0:00:16.8]} 55. Bc5 {[%clk 0:00:54.7]} 55... Bf7+ {[%clk 0:00:17]} 56. Kd6
{[%clk 0:00:55.6]} 56... Bh5 {[%clk 0:00:13.7]} 57. c7 {[%clk 0:00:39.7]} 57...
Bg4 {[%clk 0:00:14.8]} 58. e5 {[%clk 0:00:41.3]} 58... Kh7 {[%clk 0:00:09.1]}
59. e6 {[%clk 0:00:40.8]} 59... Bxe6 {[%clk 0:00:09.6]} 60. Kxe6 {[%clk
0:00:39.2]} 60... Rxc5 {[%clk 0:00:10.1]} 61. Kd7 {[%clk 0:00:40.7]} 61... Rd5+
{[%clk 0:00:10.6]} 62. Kc6 {[%clk 0:00:41]} 62... Rd2 {[%clk 0:00:05.8]} 63. Rh1
{[%clk 0:00:39.4]} 63... Rc2+ {[%clk 0:00:06.4]} 64. Kb7 {[%clk 0:00:40.4]}
64... Rb2+ {[%clk 0:00:07.5]} 65. Ka7 {[%clk 0:00:41.5]} 65... Rc2 {[%clk
0:00:08.4]} 66. Rxh2+ {[%clk 0:00:42.6]} 66... Rxh2 {[%clk 0:00:10]} 67. c8=Q
{[%clk 0:00:43.7]} 67... Rh4 {[%clk 0:00:10.2]} 68. Qe6 {[%clk 0:00:37.2]} 68...
Rh6 {[%clk 0:00:06.4]} 69. Qd7+ {[%clk 0:00:38.4]} 69... Kh8 {[%clk 0:00:07.1]}
70. Qxa4 {[%clk 0:00:40.3]} 70... Rh7+ {[%clk 0:00:08.3]} 71. Kb6 {[%clk
0:00:41.7]} 71... Rf7 {[%clk 0:00:09.8]} 72. Qh4+ {[%clk 0:00:41.5]} 72... Kg7
{[%clk 0:00:11.2]} 73. Kc6 {[%clk 0:00:42.3]} 73... Rf6+ {[%clk 0:00:12.2]} 74.
Kd5 {[%clk 0:00:43.8]} 74... Kg6 {[%clk 0:00:13.7]} 75. Qg4+ {[%clk 0:00:44.6]}
75... Kf7 {[%clk 0:00:14.4]} 76. Ke5 {[%clk 0:00:46]} 76... Rb6 {[%clk
0:00:08.4]} 77. Qd7+ {[%clk 0:00:46.1]} 77... Kg6 {[%clk 0:00:08.6]} 78. Qe8+
{[%clk 0:00:44.8]} 78... Kh6 {[%clk 0:00:07.3]} 79. Kf5 {[%clk 0:00:44]} 79...
Ra6 {[%clk 0:00:06]} 80. Qe3+ {[%clk 0:00:41]} 80... Kh7 {[%clk 0:00:04.5]} 81.
Qe2 {[%clk 0:00:31.4]} 81... Ra5+ {[%clk 0:00:04.2]} 82. Kf6 {[%clk 0:00:32.4]}
1-0

[Event "*** MasterClass Titled Tuesday Blitz"]
[Site "Chess.com"]
[Date "2017.12.12"]
[Round "9"]
[White "truki"]
[Black "BartoszSocko"]
[Result "0-1"]
[WhiteElo "2209"]
[BlackElo "2524"]
[TimeControl "180+2"]
[EndTime "15:03:34 PST"]
[Termination "BartoszSocko won by resignation"]

1. d4 {[%clk 0:02:35.3]} 1... e6 {[%clk 0:03:01.1]} 2. c4 {[%clk 0:02:34.5]}
2... Nf6 {[%clk 0:03:00.8]} 3. Nf3 {[%clk 0:02:34.2]} 3... Bb4+ {[%clk
0:03:01.2]} 4. Bd2 {[%clk 0:02:34.8]} 4... c5 {[%clk 0:03:00.9]} 5. Bxb4 {[%clk
0:02:33.3]} 5... cxb4 {[%clk 0:03:02.8]} 6. a3 {[%clk 0:02:35]} 6... bxa3 {[%clk
0:03:03.1]} 7. b4 {[%clk 0:02:36.9]} 7... Nc6 {[%clk 0:02:59.5]} 8. b5 {[%clk
0:02:33.2]} 8... Qa5+ {[%clk 0:03:00.5]} 9. Nbd2 {[%clk 0:02:28.9]} 9... Nb4
{[%clk 0:02:55.9]} 10. Qb3 {[%clk 0:02:26.8]} 10... d5 {[%clk 0:02:53.7]} 11. e3
{[%clk 0:02:19]} 11... O-O {[%clk 0:02:42.3]} 12. Be2 {[%clk 0:02:08.3]} 12...
dxc4 {[%clk 0:02:39.5]} 13. Bxc4 {[%clk 0:02:08.8]} 13... Bd7 {[%clk 0:02:35.3]}
14. O-O {[%clk 0:02:08.6]} 14... a2 {[%clk 0:02:36]} 15. Ne5 {[%clk 0:01:59.5]}
15... Bxb5 {[%clk 0:02:30.7]} 16. Bxb5 {[%clk 0:02:00.5]} 16... Qxb5 {[%clk
0:02:32.6]} 17. Rxa2 {[%clk 0:02:02]} 17... Rfc8 {[%clk 0:02:29.6]} 18. Rb1
{[%clk 0:01:43.6]} 18... a5 {[%clk 0:02:26.3]} 19. h3 {[%clk 0:01:34.7]} 19...
Nfd5 {[%clk 0:02:24]} 20. Ne4 {[%clk 0:01:34]} 20... a4 {[%clk 0:02:12.2]} 21.
Qa3 {[%clk 0:01:29.9]} 21... Qa5 {[%clk 0:01:54.6]} 22. Nd6 {[%clk 0:01:24.7]}
22... Nxa2 {[%clk 0:01:52.2]} 23. Qxa2 {[%clk 0:01:06.1]} 23... Nc3 {[%clk
0:01:45.7]} 24. Qa1 {[%clk 0:00:57.7]} 24... Nxb1 {[%clk 0:01:45.9]} 25. Qxb1
{[%clk 0:00:58.8]} 25... Rc7 {[%clk 0:01:41.6]} 0-1

[Event "*** MasterClass Titled Tuesday Blitz"]
[Site "Chess.com"]
[Date "2017.12.12"]
[Round "9"]
[White "Alliswell998"]
[Black "goldenspine"]
[Result "1-0"]
[WhiteElo "2353"]
[BlackElo "2275"]
[TimeControl "180+2"]
[EndTime "15:03:39 PST"]
[Termination "Alliswell998 won by resignation"]

1. e4 {[%clk 0:03:01.7]} 1... e6 {[%clk 0:03:00.8]} 2. d4 {[%clk 0:03:02.2]}
2... d5 {[%clk 0:03:02.4]} 3. Nc3 {[%clk 0:03:03.5]} 3... Bb4 {[%clk 0:03:03.3]}
4. exd5 {[%clk 0:03:04.3]} 4... exd5 {[%clk 0:03:04.2]} 5. Bd3 {[%clk
0:03:05.4]} 5... Ne7 {[%clk 0:03:05.6]} 6. a3 {[%clk 0:03:05]} 6... Bxc3+ {[%clk
0:03:03.3]} 7. bxc3 {[%clk 0:03:06.9]} 7... Nbc6 {[%clk 0:03:04.1]} 8. Ne2
{[%clk 0:03:04.2]} 8... Bf5 {[%clk 0:03:05.5]} 9. Nf4 {[%clk 0:03:05]} 9... Qd7
{[%clk 0:03:05.6]} 10. O-O {[%clk 0:03:04.7]} 10... O-O {[%clk 0:03:06.3]} 11.
Qh5 {[%clk 0:03:01.5]} 11... Na5 {[%clk 0:02:56.8]} 12. Re1 {[%clk 0:02:57]}
12... Bxd3 {[%clk 0:02:53.8]} 13. cxd3 {[%clk 0:02:58.5]} 13... Nb3 {[%clk
0:02:44.8]} 14. Ra2 {[%clk 0:02:58.9]} 14... Nxc1 {[%clk 0:02:44.8]} 15. Rxc1
{[%clk 0:03:00]} 15... c6 {[%clk 0:02:39.2]} 16. Re1 {[%clk 0:02:59]} 16... Ng6
{[%clk 0:02:36]} 17. Nxg6 {[%clk 0:02:40.9]} 17... hxg6 {[%clk 0:02:37.9]} 18.
Qf3 {[%clk 0:02:31.1]} 18... Rfe8 {[%clk 0:02:37.9]} 19. Rae2 {[%clk 0:02:32.7]}
19... Rxe2 {[%clk 0:02:31.3]} 20. Qxe2 {[%clk 0:02:32.5]} 20... Kf8 {[%clk
0:02:29.8]} 21. h3 {[%clk 0:02:22.2]} 21... Re8 {[%clk 0:02:28.2]} 22. Qd2
{[%clk 0:02:21.6]} 22... Rxe1+ {[%clk 0:02:26.7]} 23. Qxe1 {[%clk 0:02:23.5]}
23... Qd6 {[%clk 0:02:27.9]} 24. Qb1 {[%clk 0:02:17.7]} 24... b6 {[%clk
0:02:25.3]} 25. Qb3 {[%clk 0:02:14.2]} 25... Ke7 {[%clk 0:02:16]} 26. g3 {[%clk
0:02:12.4]} 26... Qe6 {[%clk 0:02:13.4]} 27. Kg2 {[%clk 0:02:11.7]} 27... Qe2
{[%clk 0:02:11.4]} 28. Qa4 {[%clk 0:02:11.1]} 28... Qxd3 {[%clk 0:01:41.8]} 29.
Qxa7+ {[%clk 0:02:10.1]} 29... Ke6 {[%clk 0:01:36.2]} 30. Qxb6 {[%clk
0:02:08.8]} 30... Qxc3 {[%clk 0:01:35.6]} 31. a4 {[%clk 0:02:05.2]} 31... Kf5
{[%clk 0:01:33.2]} 32. a5 {[%clk 0:02:03.3]} 32... Ke4 {[%clk 0:01:34]} 33. Qb1+
{[%clk 0:02:02.6]} 33... Kxd4 {[%clk 0:01:32.5]} 34. a6 {[%clk 0:02:03.8]} 34...
Qa5 {[%clk 0:01:31.6]} 35. Qb7 {[%clk 0:01:49]} 35... Kc5 {[%clk 0:01:31.4]} 36.
a7 {[%clk 0:01:48.9]} 36... Qe1 {[%clk 0:01:28.1]} 37. a8=Q {[%clk 0:01:47.3]}
37... Qe4+ {[%clk 0:01:28.6]} 38. Kh2 {[%clk 0:01:48.8]} 1-0